bitfinex-derivatives/quotes_SOLF0:USTF0_20250228
["timestamp","ask_amount","ask_price","bid_price","bid_amount"]
[1740707940965,0.057037,131.72,131.65,1.0888]
[1740707941167,7.654137,131.72,131.66,7.6]
[1740707941462,0.04932034,131.7,131.67,0.0559187]
[1740707941662,7.64782034,131.7,131.67,0.0559187]
[1740707941968,22.83253211,131.7,131.63,114.65774474]
[1740707942169,7.6005,131.66,131.63,114.65774474]
[1740707943065,197.6685,131.72,131.63,108.42894474]
[1740707943262,0.05053608,131.66,131.63,83.56683928]
[1740707943459,15.86,131.65,131.63,77.47334474]
[1740707943963,38.64,131.65,131.62,114.93108885]
[1740707944167,38.64,131.65,131.54,35.4756582]
[1740707944364,205.86,131.65,131.54,35.4756582]
[1740707944567,7.605,131.59,131.54,35.4756582]
[1740707944767,15.86,131.65,131.54,31.5310582]
[1740707945369,0.0489479,131.61,131.54,31.5310582]
[1740707945865,7.604,131.6,131.54,31.5310582]
[1740707946066,15.86,131.65,131.54,31.5310582]
[1740707946262,124.90703696,131.81,131.55,4.90080471]
[1740707946469,7.5936,131.78,131.69,7.5982]
[1740707946672,124.90703696,131.81,131.62,206.64]
[1740707946968,124.90703696,131.81,131.67,7.5998]
[1740707946969,15.86,131.78,131.67,7.5998]
[1740707947168,15.86,131.78,131.63,8.0695]
[1740707947369,15.86,131.78,131.64,8.98695273]
[1740707947566,18.29082509,131.65,131.64,4.091]
[1740707947766,83.38745072,131.66,131.64,4.091]
[1740707948267,83.43666846,131.66,131.64,4.091]
[1740707948462,39.81816846,131.66,131.64,4.091]
[1740707948669,27.36116846,131.66,131.64,4.091]
[1740707949274,27.36116846,131.66,131.64,7.6016]
[1740707949770,27.36116846,131.66,131.63,0.04805444]
[1740707950673,0.04921774,131.66,131.62,181.2312757]
[1740707951173,0.04921774,131.66,131.62,188.8337757]
[1740707951466,0.04921774,131.66,131.62,181.2312757]
[1740707951863,7.8158,131.81,131.63,1.51941046]
[1740707953073,0.04869697,131.73,131.71,0.04921774]
[1740707953269,11.9517,131.81,131.71,0.04921774]
[1740707953470,11.9517,131.81,131.63,1.51941046]
[1740707953670,11.9517,131.81,131.73,7.5959]
[1740707954071,19.5435,131.81,131.68,7.5991]
[1740707954276,11.9517,131.81,131.63,1.51941046]
[1740707954479,0.0556112,131.76,131.73,0.05669413]
[1740707954771,0.05541425,131.76,131.63,1.51941046]
[1740707955075,7.5937,131.78,131.73,0.05146251]
[1740707955375,0.0485372,131.71,131.7,7.5981]
[1740707955676,11.9517,131.81,131.74,0.04806648]
[1740707955975,7.5928,131.8,131.72,7.5968]
[1740707956175,0.05546915,131.79,131.76,0.05630795]
[1740707956672,7.64886915,131.79,131.76,0.05630795]
[1740707957075,0.05546915,131.79,131.76,0.05630795]
[1740707957270,0.05546915,131.79,131.76,7.65040795]
[1740707957580,0.05546915,131.79,131.76,0.05630795]
[1740707957879,7.64856915,131.79,131.76,0.05630795]
[1740707958179,0.05546915,131.79,131.76,0.05630795]
[1740707958375,7.64846915,131.79,131.76,0.05630795]
[1740707958776,0.05546915,131.79,131.76,0.05630795]
[1740707958979,0.05546915,131.79,131.64,0.2936]
[1740707959277,11.9517,131.81,131.64,0.2936]
[1740707959973,7.5924,131.8,131.74,7.5954]
[1740707960179,0.04934907,131.74,131.71,0.04160676]
[1740707960381,11.9517,131.81,131.65,1.51917964]
[1740707960581,7.5934,131.79,131.73,7.5964]
[1740707960782,11.9517,131.81,131.65,1.51917964]
[1740707961476,2.72e-05,131.74,131.72,0.04812355]
[1740707961781,11.9517,131.81,131.65,1.51917964]
[1740707962278,7.593,131.79,131.73,7.596]
[1740707962585,15.1721,131.91,131.65,196.51917964]
[1740707962784,0.05528468,131.77,131.75,0.05139553]
[1740707963178,23.6232,131.85,131.65,196.51917964]
[1740707963378,0.04949141,131.77,131.75,0.04815614]
[1740707963577,0.04949141,131.77,131.65,196.51917964]
[1740707963777,23.6232,131.85,131.75,0.05021958]
[1740707964077,7.5945,131.77,131.65,1.51917964]
[1740707964780,4.0897,131.8,131.71,7.5976]
[1740707964781,4.995e-05,131.72,131.71,7.5976]
[1740707964976,23.6232,131.85,131.65,196.51917964]
[1740707965182,7.5912,131.82,131.77,7.5937]
[1740707965381,3.7965,131.84,131.65,1.51917964]
[1740707965879,0.05591581,131.76,131.73,0.05448092]
[1740707966382,0.0507782,131.76,131.73,0.04960823]
[1740707966885,0.0507782,131.76,131.75,7.5952]
[1740707967680,0.0507782,131.76,131.73,7.64580823]
[1740707967883,7.5953,131.75,131.73,0.04960823]
[1740707968082,0.0507782,131.76,131.73,0.04960823]
[1740707968278,7.5958,131.74,131.73,0.04960823]
[1740707968589,11.9854,131.75,131.66,4.90323964]
[1740707968888,11.9854,131.75,131.65,1.51917964]
[1740707969187,11.9854,131.75,131.68,7.5988]
[1740707969482,11.9854,131.75,131.65,1.51917964]
[1740707969678,0.05114621,131.73,131.7,0.05054765]
[1740707969880,0.05114621,131.73,131.71,7.5973]
[1740707970078,0.05114621,131.73,131.7,0.05054765]
[1740707970682,0.05114621,131.73,131.71,7.5975]
[1740707970882,0.05114621,131.73,131.7,0.05054765]
[1740707971888,0.05114621,131.73,131.71,7.5975]
[1740707972089,0.05114621,131.73,131.7,0.05054765]
[1740707973286,0.05114621,131.73,131.71,7.5971]
[1740707973494,0.05114621,131.73,131.7,0.05054765]
[1740707974092,0.05114621,131.73,131.72,7.597]
[1740707974301,0.05114621,131.73,131.65,1.51917964]
[1740707974497,11.9854,131.75,131.65,1.51917964]
[1740707974885,19.5808,131.75,131.65,1.51917964]
[1740707975191,11.9854,131.75,131.65,1.51917964]
[1740707975392,7.5973,131.72,131.65,1.51917964]
[1740707975594,0.04939554,131.71,131.69,0.05041936]
[1740707975890,0.04939554,131.71,131.65,1.51917964]
[1740707976390,0.04939554,131.71,131.56,31.34275174]
[1740707976595,15.84,131.73,131.6,7.6037]
[1740707976795,15.84,131.73,131.56,31.34275174]
[1740707976796,190.0,131.72,131.56,31.34275174]
[1740707976995,0.05022728,131.68,131.65,0.04708059]
[1740707977191,0.05022728,131.68,131.56,31.34275174]
[1740707977498,190.0,131.71,131.56,31.34275174]
[1740707977499,1.28282419,131.7,131.56,31.34275174]
[1740707977795,190.0,131.71,131.56,7.6061]
[1740707977992,190.0,131.71,131.54,4.90493219]
[1740707978199,1.28303081,131.7,131.53,206.6]
[1740707978397,0.04779345,131.64,131.54,4.90168503]
[1740707978695,1.28314041,131.7,131.56,7.6061]
[1740707978890,0.05791164,131.6,131.53,206.6]
[1740707979100,15.84,131.65,131.53,206.6]
[1740707979296,0.04860694,131.58,131.53,206.6]
[1740707979794,0.04860694,131.58,131.53,214.2075]
[1740707980302,0.04860694,131.58,131.54,7.6073]
[1740707981296,0.04860694,131.58,131.53,206.6]
[1740707981897,7.65380694,131.58,131.53,206.6]
[1740707982300,0.04860694,131.58,131.53,206.6]
[1740707983006,0.04860694,131.58,131.57,7.6056]
[1740707983902,15.84,131.67,131.57,7.6056]
[1740707983903,15.84,131.67,131.61,7.6029]
[1740707984200,7.5991,131.69,131.58,4.89037032]
[1740707984501,11.974,131.71,131.53,206.6]
[1740707984502,8.1381,131.71,131.59,4.89037032]
[1740707984693,8.1381,131.71,131.6,6.74737032]
[1740707984896,8.1381,131.71,131.61,4.89037032]
[1740707985098,8.1381,131.71,131.67,7.5995]
[1740707985802,0.05457838,131.7,131.68,0.04860694]
[1740707986204,8.1381,131.71,131.61,4.88963674]
[1740707986401,7.64847498,131.7,131.68,0.04860694]
[1740707986703,7.5982,131.7,131.61,4.88963674]
[1740707986998,7.5982,131.7,131.64,7.6011]
[1740707987204,7.5989,131.69,131.64,7.6011]
[1740707987395,0.04990878,131.66,131.64,0.04860694]
[1740707987599,0.04990878,131.66,131.54,4.88963674]
[1740707987798,4.1025,131.67,131.55,4.88963674]
[1740707988103,4.1025,131.67,131.56,7.6057]
[1740707988403,4.1025,131.67,131.55,4.88963674]
[1740707988605,4.1025,131.67,131.61,7.6029]
[1740707988804,4.1025,131.67,131.54,4.88963674]
[1740707989003,4.1025,131.67,131.55,4.88963674]
[1740707989004,0.05664628,131.65,131.55,4.88963674]
[1740707989204,0.05664628,131.65,131.54,4.88963674]
[1740707989406,4.1025,131.67,131.54,4.88963674]
[1740707989606,0.05038675,131.61,131.55,4.88963674]
[1740707989806,0.05038675,131.61,131.54,4.88963674]
[1740707990007,4.1025,131.67,131.55,4.88963674]
[1740707990208,4.1025,131.67,131.56,4.88963674]
[1740707990409,0.05366062,131.59,131.57,7.6052]
[1740707990709,0.05062972,131.59,131.55,4.88963674]
[1740707990904,4.1025,131.67,131.56,4.88963674]
[1740707991111,4.1025,131.67,131.57,4.88963674]
[1740707991314,7.6072,131.55,131.5,7.6092]
[1740707991513,15.84,131.6,131.47,18.65165333]
[1740707991804,15.84,131.6,131.44,206.74]
[1740707991805,19.5856,131.59,131.44,206.74]
[1740707992012,7.6086,131.52,131.46,7.6119]
[1740707992209,7.6086,131.52,131.5,0.05038349]
[1740707992611,7.65866612,131.52,131.5,0.05038349]
[1740707992816,0.05006612,131.52,131.44,206.74]
[1740707993014,15.84,131.51,131.41,83.45828927]
[1740707993211,3.742,131.5,131.41,83.45828927]
[1740707993413,7.6109,131.48,131.41,83.45828927]
[1740707993718,3.742,131.5,131.41,83.45828927]
[1740707994012,0.05262827,131.47,131.4,7.6155]
[1740707994403,0.05262827,131.47,131.33,31.34275174]
[1740707994814,3.742,131.5,131.36,1.52253349]
[1740707995111,0.05446898,131.42,131.36,1.52253349]
[1740707995911,0.05446898,131.42,131.33,31.34275174]
[1740707996213,3.8435,131.42,131.33,31.34275174]
[1740707996408,7.856,131.42,131.33,31.34275174]
[1740707996614,0.05142469,131.39,131.33,31.34275174]
[1740707997017,0.05142469,131.39,131.26,31.34275174]
[1740707997512,7.856,131.42,131.26,31.34275174]
[1740707997810,15.84,131.5,131.27,1.39987016]
[1740707998016,23.696,131.5,131.27,1.39987016]
[1740707998714,23.696,131.5,131.42,7.6137]
[1740707999021,23.696,131.5,131.26,31.34275174]
[1740707999216,0.05024854,131.4,131.38,7.6166]
[1740707999410,0.05024854,131.4,131.37,0.04889134]
[1740707999606,23.696,131.5,131.26,31.34275174]
[1740707999807,7.6115,131.47,131.34,7.6187]
[1740708000008,0.05565959,131.4,131.26,31.34275174]
[1740708000221,15.84,131.39,131.26,31.34275174]
[1740708000520,15.84,131.39,131.25,290.25828927]
[1740708000521,7.8191,131.38,131.27,7.6225]
[1740708000710,7.8191,131.38,131.25,206.8]
[1740708001018,7.6172,131.37,131.26,7.6235]
[1740708001212,7.6172,131.37,131.25,206.8]
[1740708001410,0.04897164,131.33,131.22,31.34275174]
[1740708002017,7.8191,131.38,131.22,31.34275174]
[1740708002323,1.389e-05,131.29,131.28,7.6224]
[1740708002517,1.389e-05,131.29,131.28,214.6624]
[1740708002708,23.9707,131.47,131.28,229.9]
[1740708002912,23.9707,131.47,131.28,207.04]
[1740708003118,23.9707,131.47,131.23,4.0577]
[1740708003309,1.28034398,131.46,131.28,7.6221]
[1740708003510,0.04944249,131.39,131.36,0.0537]
[1740708003719,15.86,131.38,131.23,4.0577]
[1740708003922,4.1106,131.37,131.23,4.0577]
[1740708004115,15.86,131.44,131.24,15.86]
[1740708004426,3.7348,131.43,131.24,4.75060161]
[1740708004719,3.7348,131.43,131.23,4.0577]
[1740708004919,7.6154,131.41,131.29,7.6213]
[1740708005123,0.05509925,131.35,131.23,4.0577]
[1740708005325,9.925e-05,131.35,131.24,1.40028755]
[1740708005620,4.1028,131.42,131.25,1.40001424]
[1740708005818,4.1028,131.42,131.25,201.14714549]
[1740708006018,4.1028,131.42,131.23,23.0577]
[1740708006019,15.86,131.51,131.41,7.6148]
[1740708006225,7.8376,131.5,131.33,207.06]
[1740708006521,7.8376,131.5,131.42,7.6142]
[1740708006721,0.05683177,131.43,131.4,0.05425154]
[1740708006922,3.177e-05,131.43,131.4,0.05425154]
[1740708007223,4.1028,131.5,131.4,22.82]
[1740708007418,31.38539872,131.54,131.35,1.6801]
[1740708007419,3.8685,131.54,131.39,15.86]
[1740708007727,4.1028,131.55,131.39,15.86]
[1740708007917,4.1028,131.55,131.39,210.86]
[1740708008115,4.1028,131.55,131.46,0.05689638]
[1740708008319,0.05665279,131.48,131.46,0.05689638]
[1740708008513,3.8685,131.54,131.39,15.86]
[1740708008713,4.1028,131.55,131.39,15.86]
[1740708008915,0.05275765,131.48,131.46,0.05720787]
[1740708009128,12.0198,131.61,131.53,7.6079]
[1740708009325,12.0198,131.61,131.46,207.02]
[1740708009526,15.86,131.6,131.46,207.02]
[1740708010421,0.05289993,131.54,131.52,0.05096336]
[1740708010925,15.86,131.6,131.46,207.02]
[1740708011126,0.04831987,131.54,131.52,0.05546718]
[1740708011325,0.04831987,131.54,131.53,7.6079]
[1740708011525,15.86,131.6,131.47,4.75821965]
[1740708011717,12.0198,131.61,131.47,8.62991965]
[1740708012025,0.05767071,131.55,131.52,0.05169317]
[1740708012418,15.84,131.57,131.46,207.02]
[1740708012817,0.05081623,131.55,131.52,0.05725833]
[1740708013024,0.05081623,131.55,131.41,3.8717]
[1740708013219,0.05081623,131.55,131.38,206.98]
[1740708013427,1.28214928,131.56,131.38,7.6161]
[1740708013623,1.28214928,131.56,131.37,31.34275174]
[1740708013820,7.6116,131.47,131.37,38.95945174]
[1740708014019,3.9181,131.46,131.37,31.34275174]
[1740708014532,0.04833657,131.43,131.41,0.05600202]
[1740708014730,0.04833657,131.43,131.37,31.34275174]
[1740708014928,7.6172,131.37,131.36,24.79774101]
[1740708015122,15.86,131.37,131.36,24.76844101]
[1740708015429,38.7,131.37,131.36,24.76844101]
[1740708015833,38.7,131.37,131.2,332.21475052]
[1740708016034,15.86,131.37,131.35,0.0512973]
[1740708016332,15.86,131.37,131.2,332.21475052]
[1740708016534,15.86,131.37,131.21,3.8138]
[1740708016733,15.91284921,131.37,131.35,0.0512973]
[1740708016929,205.86,131.44,131.23,15.86]
[1740708017130,7.6155,131.4,131.27,7.623]
[1740708017428,0.05838367,131.37,131.35,0.05087637]
[1740708017634,0.05838367,131.37,131.23,15.86]
[1740708017835,15.86,131.44,131.35,0.04954305]
[1740708018330,0.04809412,131.41,131.24,1.52392563]
[1740708018535,0.04809412,131.41,131.38,0.0512973]
[1740708018726,22.84,131.41,131.38,0.0512973]
[1740708018926,1.28125251,131.4,131.24,1.52392563]
[1740708019125,1.28125251,131.4,131.21,3.8138]
[1740708019327,397.08,131.39,131.08,18.47044875]
[1740708019536,1.28125251,131.38,131.09,8.74845811]
[1740708019725,1.28125251,131.38,131.1,1.52555301]
[1740708020329,7.6231,131.27,131.1,1.52555301]
[1740708020535,0.05742408,131.25,131.1,1.52555301]
[1740708020737,15.86,131.27,131.1,1.52555301]
[1740708020936,0.04882565,131.19,131.1,1.52555301]
[1740708021338,15.86,131.27,131.1,1.52555301]
[1740708021739,4.77e-06,131.16,131.1,24.40555301]
[1740708021933,15.86,131.34,131.11,28.96749842]
[1740708022138,15.86,131.34,131.12,30.49251302]
[1740708022436,15.86,131.34,131.13,7.7023967]
[1740708022639,15.86,131.34,131.14,6.17719271]
[1740708022841,15.86,131.34,131.15,1.5249714]
[1740708023033,15.86,131.34,131.16,15.92]
[1740708023233,3.23e-06,131.25,131.24,7.6248]
[1740708023633,15.86,131.34,131.27,7.6225]
[1740708023934,15.86,131.34,130.95,18.43298191]
[1740708023935,207.2,131.33,130.95,18.43298191]
[1740708024133,207.2,131.33,130.95,19.95776123]
[1740708024134,208.48029913,131.33,130.95,19.95776123]
[1740708024336,0.05380613,131.15,130.96,7.6405]
[1740708024534,16.32,131.14,130.94,3.9837]
[1740708024943,16.32,131.14,130.94,5.5085512]
[1740708025139,16.32,131.14,131.0,125.21475052]
[1740708025337,7.6353,131.06,131.0,125.21475052]
[1740708025537,16.3,131.05,131.0,125.21475052]
[1740708025933,7.6381,131.01,131.0,79.41475052]
[1740708026342,7.6387,131.0,130.99,366.12819551]
[1740708026537,22.9,131.01,130.99,353.78759551]
[1740708026837,22.95726002,131.01,130.99,0.04983289]
[1740708027135,22.95726002,131.01,130.72,90.29970906]
[1740708027335,0.05726002,131.01,130.87,7.67983289]
[1740708027535,1.28515919,130.93,130.7,7.6562]
[1740708027736,208.63616828,130.92,130.65,123.69843475]
[1740708027937,18.11616828,130.91,130.65,262.62328595]
[1740708028136,1.27616828,130.9,130.65,262.62328595]
[1740708028339,1.27540556,130.89,130.65,262.62328595]
[1740708028537,0.049409,130.79,130.65,123.69843475]
[1740708028736,206.82,130.78,130.65,123.69843475]
[1740708029140,0.05131317,130.73,130.65,123.69843475]
[1740708029342,0.05131317,130.73,130.57,7.5515]
[1740708029540,7.6545,130.73,130.62,7.6607]
[1740708029746,0.04929143,130.66,130.57,146.4763512]
[1740708030146,16.88,130.68,130.57,146.4763512]
[1740708030343,16.88,130.68,128.06,89.84003255]
[1740708030344,0.05524731,130.63,130.27,823.90648748]
[1740708030547,7.6662,130.53,130.33,7.7407]
[1740708030746,16.9,130.52,130.33,7.7407]
[1740708031147,0.0490621,130.44,130.33,27.5559512]
[1740708031542,16.9,130.52,130.33,27.5559512]
[1740708031744,7.6686,130.49,130.37,7.6751]
[1740708031944,3.57e-05,130.4,130.33,7.7407]
[1740708032143,16.96,130.56,130.33,7.7407]
[1740708032347,73.91971095,130.61,130.34,207.94]
[1740708032851,73.91971095,130.61,130.48,7.669]
[1740708033048,73.91971095,130.61,130.34,207.94]
[1740708033248,73.91971095,130.61,130.34,227.7552512]
[1740708033449,0.05281902,130.56,130.53,0.05620571]
[1740708033746,73.91971095,130.61,130.34,227.7552512]
[1740708033943,7.6628,130.59,130.44,7.6713]
[1740708034148,0.05328906,130.56,130.53,0.04836376]
[1740708034550,22.98,130.56,130.34,207.94]
[1740708034752,73.91971095,130.61,130.37,0.04836376]
[1740708034943,16.96,130.63,130.37,7.6751]
[1740708035250,16.96,130.63,130.38,0.04836376]
[1740708035450,16.96,130.63,130.4,7.6739]
[1740708035647,1.27414248,130.62,130.33,7.7407]
[1740708035841,0.05565376,130.52,130.33,27.5559512]
[1740708036040,0.05565376,130.52,130.33,19.8152512]
[1740708036252,17.86,130.57,130.34,3.8825]
[1740708036447,17.86,130.57,130.42,0.04836376]
[1740708036647,17.86,130.57,130.45,0.04836376]
[1740708036846,17.86,130.57,130.34,3.8825]
[1740708037142,17.86,130.57,130.37,0.04836376]
[1740708037350,17.86,130.57,130.38,0.04836376]
[1740708037647,17.86,130.57,130.43,0.04836376]
[1740708038149,0.05395094,130.49,130.27,7.7622]
[1740708038449,18.06,130.48,130.27,7.7622]
[1740708038650,18.06,130.48,130.32,0.04836376]
[1740708038846,18.06,130.48,130.33,0.04836376]
[1740708039254,18.06,130.48,130.27,7.7622]
[1740708039554,0.05067907,130.42,130.34,0.04836376]
[1740708039755,0.05067907,130.42,130.27,7.7622]
[1740708040046,208.32,130.57,130.37,0.04836376]
[1740708040246,18.14,130.56,130.34,208.32]
[1740708040445,18.14,130.56,130.44,0.04836376]
[1740708040647,18.22,130.62,130.45,0.04836376]
[1740708040843,18.22,130.62,130.47,0.04836376]
[1740708041048,18.22,130.62,130.35,3.9471]
[1740708041248,18.22,130.62,130.44,0.04836376]
[1740708041455,209.6503918,130.61,130.15,15.3772]
[1740708041654,208.38,130.61,130.26,3.739]
[1740708041855,1.27098229,130.6,130.26,3.739]
[1740708042048,0.05316035,130.54,130.52,3.921e-05]
[1740708042250,0.05316035,130.54,130.28,208.38]
[1740708042542,18.98,130.58,130.29,3.7994]
[1740708042748,208.38,130.68,130.29,19.84168819]
[1740708042945,1.27075494,130.67,130.02,208.38]
[1740708043145,15.3237,130.61,130.14,3.7994]
[1740708043357,1225.84,130.64,130.15,216.0713]
[1740708043553,0.04990506,130.36,130.15,216.0713]
[1740708043749,0.04990506,130.36,130.16,7.6879]
[1740708043950,0.04990506,130.36,130.15,216.0713]
[1740708044146,208.38,130.49,130.15,216.0713]
[1740708044346,1.26902711,130.48,130.15,216.0713]
[1740708044653,0.0483794,130.27,130.15,216.0713]
[1740708045052,1.26902711,130.48,130.15,216.0713]
[1740708045351,0.05692396,130.22,130.15,216.0713]
[1740708045550,1.26902711,130.48,130.15,216.0713]
[1740708045857,24.07902711,130.48,130.15,216.0713]
[1740708046054,208.38,130.49,130.16,3.9829]
[1740708046550,22.79,130.48,130.16,3.9829]
[1740708046745,1.2686935,130.47,130.16,3.9829]
[1740708046945,0.05790948,130.34,130.16,3.9829]
[1740708047450,208.64,130.38,130.15,3.9523]
[1740708048445,0.05158529,130.28,130.15,3.9523]
[1740708049055,208.64,130.38,130.15,3.9523]
[1740708049244,208.64,130.47,130.15,3.9523]
[1740708049445,0.05358686,130.23,130.15,3.9523]
[1740708049646,208.64,130.47,130.15,3.9523]
[1740708050350,208.72,130.55,130.15,3.9523]
[1740708050655,208.72,130.56,130.32,7.6784]
[1740708050854,53.78547314,130.7,130.33,4.1497]
[1740708050855,208.72,130.6,130.33,4.1497]
[1740708051155,208.72,130.64,130.34,212.67225614]
[1740708051455,1.27105339,130.63,130.34,212.67225614]
[1740708051656,1.27105339,130.63,130.34,212.6215]
[1740708051853,208.72,130.64,130.37,7.6756]
[1740708052054,208.72,130.64,130.34,212.6215]
[1740708052657,0.05518171,130.52,130.34,211.6215097]
[1740708052957,7.6716,130.44,130.34,211.6215097]
[1740708053160,216.5683,130.62,130.22,90.7010606]
[1740708053359,4.8219,130.51,130.24,208.7]
[1740708053557,4.8219,130.51,130.28,7.6809]
[1740708053757,4.8219,130.51,130.24,208.7]
[1740708054061,7.6739,130.4,130.26,7.6819]
[1740708054359,0.04902688,130.41,130.38,0.05881293]
[1740708054554,7.6745,130.39,130.25,7.6827]
[1740708054751,4.8219,130.51,130.23,3.7802]
[1740708054956,4.8219,130.51,130.38,0.05026033]
[1740708055158,7.6745,130.39,130.38,0.05026033]
[1740708055459,208.7,130.61,130.33,208.7]
[1740708055655,3.7783,130.58,130.34,3.7802]
[1740708055851,0.05238635,130.4,130.37,0.05501454]
[1740708056056,3.7783,130.58,130.37,0.05501454]
[1740708056458,1.0436,130.62,130.37,0.05501454]
[1740708056662,7.6637,130.58,130.45,7.6709]
[1740708056961,208.7,130.69,130.46,8.0895]
[1740708057161,3.9746,130.7,130.46,8.0895]
[1740708057465,3.9746,130.7,130.5,0.05340458]
[1740708057664,124.90703696,130.76,130.5,0.05340458]
[1740708058064,124.90703696,130.76,130.47,4.1624]
[1740708058463,9.61819328,130.73,130.47,4.1624]
[1740708058859,0.05714984,130.61,130.58,0.04923396]
[1740708059364,7.71904984,130.61,130.58,0.04923396]
[1740708059564,7.6619,130.61,130.48,7.6686]
[1740708059766,7.6619,130.61,130.47,4.1624]
[1740708059969,7.7204118,130.61,130.58,0.05259913]
[1740708060163,0.0585118,130.61,130.58,9.913e-05]
[1740708060358,9.61819328,130.73,130.47,4.1624]
[1740708060563,1.27232499,130.72,130.47,4.1624]
[1740708060964,9.61819328,130.73,130.47,4.1624]
[1740708061165,7.6642,130.57,130.47,4.1624]
[1740708061371,1.27221963,130.72,130.47,4.1624]
[1740708061670,0.05306892,130.61,130.49,7.6685]
[1740708061970,0.05306892,130.61,130.47,4.1624]
[1740708062172,9.61819328,130.73,130.47,4.1624]
[1740708062364,1.27205038,130.72,130.47,4.1624]
[1740708063171,0.05107385,130.61,130.58,0.05205937]
[1740708063663,38.47277314,130.66,130.47,4.1624]
[1740708064168,0.05538855,130.61,130.58,0.05612441]
[1740708064770,38.47277314,130.66,130.47,4.1624]
[1740708065171,0.05649334,130.61,130.58,0.05285627]
[1740708065665,38.47277314,130.66,130.47,4.1624]
[1740708066063,38.5239589,130.61,130.58,0.05299834]
[1740708066365,26.0193589,130.61,130.47,4.1624]
[1740708066665,25.96817314,130.61,130.47,4.1624]
[1740708066864,19.70907314,130.61,130.47,27.1424]
[1740708067071,45.7102463,130.63,130.47,27.1424]
[1740708067271,124.90703696,130.64,130.47,27.1424]
[1740708067272,67.16648326,130.64,130.48,1.40811391]
[1740708067567,209.38896746,130.65,130.54,0.02242839]
[1740708067769,163.42896746,130.65,130.55,208.54]
[1740708067970,155.76896746,130.65,130.55,208.54]
[1740708068164,155.76896746,130.65,130.55,231.52]
[1740708068469,13.77866746,130.65,130.55,231.45307567]
[1740708068670,4.0814,130.84,130.56,1.4070729]
[1740708068866,7.6498,130.82,130.56,1.4070729]
[1740708069171,4.0814,130.84,130.59,0.05584219]
[1740708069371,7.6539,130.75,130.55,208.47307567]
[1740708069564,4.0814,130.84,130.55,208.47307567]
[1740708070065,4.0814,130.84,130.56,2.81393584]
[1740708070261,4.0814,130.84,130.56,1.40699043]
[1740708070464,59.4831195,130.77,130.65,7.6589]
[1740708070667,287.17004342,130.84,130.66,208.44]
[1740708070863,59.4831195,130.78,130.66,208.44]
[1740708071162,287.17004342,130.84,130.66,208.44]
[1740708071469,0.05413993,130.76,130.74,0.05691939]
[1740708072367,59.4831195,130.75,130.66,208.44]
[1740708072568,59.4831195,130.72,130.66,208.44]
[1740708072771,7.6569,130.69,130.66,208.44]
[1740708073073,4.1324,130.85,130.66,208.44]
[1740708073268,291.30244342,130.85,130.66,208.44]
[1740708073572,59.4831195,130.77,130.66,208.44]
[1740708073763,59.4831195,130.68,130.56,91.87960913]
[1740708073965,8.1461,130.76,130.56,91.87960913]
[1740708074162,3.8819,130.75,130.65,2.634e-05]
[1740708074372,220.07311349,130.63,130.61,109.89701586]
[1740708074565,72.07200785,130.62,130.61,73.91913093]
[1740708074766,64.41100785,130.62,130.58,58.97021595]
[1740708075062,72.07370785,130.59,130.58,1.595e-05]
[1740708075268,64.41100785,130.59,130.57,57.13422056]
[1740708075467,7.6633,130.58,130.57,0.04925902]
[1740708075668,7.6633,130.58,130.57,0.01805902]
[1740708075870,22.98,130.58,130.57,0.01805902]
[1740708076074,0.0489843,130.6,130.43,244.66130096]
[1740708076075,22.79,130.57,130.43,244.66130096]
[1740708076277,231.2889843,130.6,130.43,169.38480096]
[1740708076477,1.27877272,130.59,130.33,122.08128066]
[1740708076768,1.27877272,130.59,130.33,160.39128066]
[1740708076976,24.06877272,130.59,130.33,122.08128066]
[1740708077273,22.79,130.59,130.33,122.08128066]
[1740708077472,0.05152769,130.47,130.45,8.112e-05]
[1740708077671,7.6703,130.46,130.45,8.112e-05]
[1740708077871,1.53303694,130.46,130.21,7.685]
[1740708078078,1.53303694,130.46,130.21,91.95814014]
[1740708078266,24.53303694,130.46,129.87,15.4093]
[1740708078470,24.34303694,130.46,130.01,92.26580878]